[Event "*** SCC Grand Prix: Titled Tuesday Blitz"]
[Site "Chess.com"]
[Date "2020.08.04"]
[Round "4"]
[White "Vadim_Biliy"]
[Black "biaf13"]
[Result "1-0"]
[WhiteElo "2241"]
[BlackElo "1968"]
[TimeControl "180+1"]
[EndTime "14:23:18 PDT"]
[Termination "Vadim_Biliy won by resignation"]

1. d4 {[%clk 0:03:00.9]} 1... Nf6 {[%clk 0:02:58]} 2. Nf3 {[%clk 0:03:00.5]}
2... g6 {[%clk 0:02:57.8]} 3. e3 {[%clk 0:03:00.6]} 3... Bg7 {[%clk 0:02:57.6]}
4. Be2 {[%clk 0:03:01.2]} 4... d6 {[%clk 0:02:56.6]} 5. O-O {[%clk 0:03:01.6]}
5... O-O {[%clk 0:02:56.2]} 6. b4 {[%clk 0:03:01.5]} 6... Nbd7 {[%clk
0:02:55.9]} 7. Bb2 {[%clk 0:02:59.9]} 7... c5 {[%clk 0:02:54.5]} 8. bxc5 {[%clk
0:02:58.1]} 8... dxc5 {[%clk 0:02:55.4]} 9. c3 {[%clk 0:02:58.1]} 9... b6 {[%clk
0:02:51.6]} 10. Nbd2 {[%clk 0:02:56.9]} 10... Bb7 {[%clk 0:02:50.4]} 11. a4
{[%clk 0:02:53.3]} 11... Qc7 {[%clk 0:02:44.7]} 12. a5 {[%clk 0:02:52.8]} 12...
bxa5 {[%clk 0:02:38.8]} 13. Qa4 {[%clk 0:02:47.5]} 13... Rab8 {[%clk 0:02:20.5]}
14. Rfb1 {[%clk 0:02:44.8]} 14... cxd4 {[%clk 0:02:13.4]} 15. cxd4 {[%clk
0:02:42.6]} 15... Rfc8 {[%clk 0:01:55.1]} 16. h3 {[%clk 0:02:38.2]} 16... e6
{[%clk 0:01:38]} 17. Bd3 {[%clk 0:02:19.9]} 17... Bxf3 {[%clk 0:01:33.2]} 18.
Nxf3 {[%clk 0:02:19]} 18... Nd5 {[%clk 0:01:25.1]} 19. Qxa5 {[%clk 0:02:01.7]}
19... Rb3 {[%clk 0:01:04.9]} 20. Qd2 {[%clk 0:01:46.1]} 20... Rcb8 {[%clk
0:00:54]} 21. Ba3 {[%clk 0:01:32.7]} 21... Rxb1+ {[%clk 0:00:47]} 22. Rxb1
{[%clk 0:01:31]} 22... Rxb1+ {[%clk 0:00:47.4]} 23. Bxb1 {[%clk 0:01:30.3]}
23... Qb6 {[%clk 0:00:41.8]} 24. Bd3 {[%clk 0:01:21]} 24... Bf8 {[%clk
0:00:38.9]} 25. Bxf8 {[%clk 0:01:18.3]} 25... Nxf8 {[%clk 0:00:39.8]} 26. Ne5
{[%clk 0:01:16]} 26... Nb4 {[%clk 0:00:38.3]} 27. Be4 {[%clk 0:01:12.9]} 27...
Nd5 {[%clk 0:00:32.3]} 28. Bxd5 {[%clk 0:01:10.5]} 28... exd5 {[%clk 0:00:32.5]}
29. Qa2 {[%clk 0:01:08.5]} 29... Qb7 {[%clk 0:00:30]} 30. g4 {[%clk 0:01:03]}
30... Nd7 {[%clk 0:00:27.1]} 31. Nd3 {[%clk 0:00:57.7]} 31... Qb5 {[%clk
0:00:20.1]} 32. Qxa7 {[%clk 0:00:48.3]} 32... Qb1+ {[%clk 0:00:19.5]} 33. Kg2
{[%clk 0:00:44.1]} 33... Qxd3 {[%clk 0:00:19.9]} 34. Qxd7 {[%clk 0:00:43.6]}
34... Qe4+ {[%clk 0:00:20.8]} 35. Kh2 {[%clk 0:00:40.3]} 35... Kg7 {[%clk
0:00:19.7]} 36. Qd6 {[%clk 0:00:35.9]} 36... Qc2 {[%clk 0:00:19.1]} 37. Qe5+
{[%clk 0:00:34]} 37... Kg8 {[%clk 0:00:19.3]} 38. Kg2 {[%clk 0:00:31.9]} 38...
Qc4 {[%clk 0:00:18.5]} 39. Kg3 {[%clk 0:00:30.8]} 39... h6 {[%clk 0:00:17.6]}
40. h4 {[%clk 0:00:30.2]} 40... Qa2 {[%clk 0:00:16.1]} 41. h5 {[%clk 0:00:28.6]}
41... gxh5 {[%clk 0:00:15.7]} 42. gxh5 {[%clk 0:00:27.7]} 42... Qb3 {[%clk
0:00:16.2]} 43. Kg4 {[%clk 0:00:25.7]} 43... Qc2 {[%clk 0:00:15.7]} 44. Qf4
{[%clk 0:00:19.7]} 44... Qd2 {[%clk 0:00:13.7]} 45. f3 {[%clk 0:00:18.6]} 45...
Qg2+ {[%clk 0:00:13.2]} 46. Kf5 {[%clk 0:00:17.9]} 46... Qg7 {[%clk 0:00:12.6]}
47. Qg4 {[%clk 0:00:17.4]} 47... Qxg4+ {[%clk 0:00:11.7]} 48. fxg4 {[%clk
0:00:16.5]} 1-0

[Event "*** SCC Grand Prix: Titled Tuesday Blitz"]
[Site "Chess.com"]
[Date "2020.08.04"]
[Round "4"]
[White "BernardoRoselli"]
[Black "ahachess"]
[Result "1-0"]
[WhiteElo "2467"]
[BlackElo "2270"]
[TimeControl "180+1"]
[EndTime "14:23:20 PDT"]
[Termination "BernardoRoselli won on time"]

1. d4 {[%clk 0:03:00.9]} 1... d5 {[%clk 0:02:57.7]} 2. c4 {[%clk 0:02:58]} 2...
e6 {[%clk 0:02:58.1]} 3. Nc3 {[%clk 0:02:56.4]} 3... c6 {[%clk 0:02:58.6]} 4. e4
{[%clk 0:02:49.8]} 4... dxe4 {[%clk 0:02:58]} 5. Nxe4 {[%clk 0:02:49.6]} 5...
Bb4+ {[%clk 0:02:58.2]} 6. Nc3 {[%clk 0:02:49.7]} 6... e5 {[%clk 0:02:50.2]} 7.
Nf3 {[%clk 0:02:32.9]} 7... exd4 {[%clk 0:02:49.5]} 8. Nxd4 {[%clk 0:02:32.4]}
8... Nf6 {[%clk 0:02:40.4]} 9. Be2 {[%clk 0:02:30.3]} 9... O-O {[%clk
0:02:40.1]} 10. O-O {[%clk 0:02:25.3]} 10... Qa5 {[%clk 0:02:35.6]} 11. Qc2
{[%clk 0:02:21.2]} 11... Bg4 {[%clk 0:02:19.5]} 12. Bxg4 {[%clk 0:02:14.7]}
12... Nxg4 {[%clk 0:02:19.4]} 13. h3 {[%clk 0:02:14.8]} 13... Nf6 {[%clk
0:02:18.9]} 14. Be3 {[%clk 0:02:10.3]} 14... Nbd7 {[%clk 0:02:17]} 15. Rad1
{[%clk 0:02:08.5]} 15... Rfe8 {[%clk 0:02:13.7]} 16. Nb3 {[%clk 0:02:07.9]}
16... Qc7 {[%clk 0:02:12.3]} 17. a3 {[%clk 0:02:07.5]} 17... Bd6 {[%clk
0:02:08.7]} 18. Qf5 {[%clk 0:01:58.5]} 18... Be5 {[%clk 0:01:55.4]} 19. Nd4
{[%clk 0:01:57.5]} 19... a6 {[%clk 0:01:41.2]} 20. Nf3 {[%clk 0:01:48.3]} 20...
Bd6 {[%clk 0:01:34.6]} 21. b4 {[%clk 0:01:45.3]} 21... Rad8 {[%clk 0:01:32]} 22.
c5 {[%clk 0:01:44.9]} 22... Bf8 {[%clk 0:01:25.6]} 23. Bf4 {[%clk 0:01:44.6]}
23... Qc8 {[%clk 0:01:24.1]} 24. Rfe1 {[%clk 0:01:35.3]} 24... Nb6 {[%clk
0:01:01.3]} 25. Qxc8 {[%clk 0:01:29.7]} 25... Nxc8 {[%clk 0:01:00.8]} 26. Rxe8
{[%clk 0:01:27.2]} 26... Rxd1+ {[%clk 0:00:53.9]} 27. Nxd1 {[%clk 0:01:21]}
27... Nxe8 {[%clk 0:00:54.2]} 28. Ne3 {[%clk 0:01:21.4]} 28... b6 {[%clk
0:00:43.5]} 29. cxb6 {[%clk 0:01:13.3]} 29... Nxb6 {[%clk 0:00:43.6]} 30. Ne5
{[%clk 0:00:55.8]} 30... c5 {[%clk 0:00:41.3]} 31. bxc5 {[%clk 0:00:55.9]} 31...
Bxc5 {[%clk 0:00:41.1]} 32. N3c4 {[%clk 0:00:53.9]} 32... Nxc4 {[%clk
0:00:39.4]} 33. Nxc4 {[%clk 0:00:53.9]} 33... f6 {[%clk 0:00:38.4]} 34. Kf1
{[%clk 0:00:53.6]} 34... Kf7 {[%clk 0:00:38.8]} 35. Ke2 {[%clk 0:00:53.8]} 35...
Ke6 {[%clk 0:00:39.3]} 36. f3 {[%clk 0:00:52.4]} 36... Kd5 {[%clk 0:00:37]} 37.
Kd3 {[%clk 0:00:52.3]} 37... g5 {[%clk 0:00:35.4]} 38. Be3 {[%clk 0:00:47.8]}
38... Be7 {[%clk 0:00:33.1]} 39. a4 {[%clk 0:00:41.9]} 39... Nd6 {[%clk
0:00:29.7]} 40. Nxd6 {[%clk 0:00:41.4]} 40... Bxd6 {[%clk 0:00:29.7]} 41. g4
{[%clk 0:00:40.4]} 41... h6 {[%clk 0:00:24.6]} 42. Bd4 {[%clk 0:00:38.4]} 42...
Be7 {[%clk 0:00:23.8]} 43. Bb2 {[%clk 0:00:36.6]} 43... Bd8 {[%clk 0:00:21.6]}
44. Ba3 {[%clk 0:00:36.5]} 1-0

[Event "*** SCC Grand Prix: Titled Tuesday Blitz"]
[Site "Chess.com"]
[Date "2020.08.04"]
[Round "4"]
[White "OK97"]
[Black "LyonBeast"]
[Result "1-0"]
[WhiteElo "2816"]
[BlackElo "3022"]
[TimeControl "180+1"]
[EndTime "14:23:22 PDT"]
[Termination "OK97 won by resignation"]

1. Nf3 {[%clk 0:03:00.9]} 1... d5 {[%clk 0:02:56.6]} 2. e3 {[%clk 0:02:58.8]}
2... Nf6 {[%clk 0:02:55.9]} 3. c4 {[%clk 0:02:58.4]} 3... e6 {[%clk 0:02:56.3]}
4. b3 {[%clk 0:02:58.1]} 4... Be7 {[%clk 0:02:56.3]} 5. Bb2 {[%clk 0:02:58.1]}
5... O-O {[%clk 0:02:56.5]} 6. Nc3 {[%clk 0:02:58.7]} 6... c5 {[%clk 0:02:53.3]}
7. cxd5 {[%clk 0:02:57.2]} 7... exd5 {[%clk 0:02:52.3]} 8. d4 {[%clk 0:02:56.7]}
8... Nc6 {[%clk 0:02:50.2]} 9. Be2 {[%clk 0:02:54.1]} 9... Be6 {[%clk
0:02:41.9]} 10. O-O {[%clk 0:02:52.3]} 10... a6 {[%clk 0:02:38.9]} 11. dxc5
{[%clk 0:02:48.9]} 11... Bxc5 {[%clk 0:02:39.8]} 12. Rc1 {[%clk 0:02:47.9]}
12... Ba7 {[%clk 0:02:35.3]} 13. Na4 {[%clk 0:02:43.4]} 13... Qe7 {[%clk
0:02:33.3]} 14. Nd4 {[%clk 0:02:39.6]} 14... Bd7 {[%clk 0:02:30.8]} 15. Nxc6
{[%clk 0:02:34.9]} 15... Bxc6 {[%clk 0:02:28.8]} 16. Bd4 {[%clk 0:02:35.3]}
16... Bxa4 {[%clk 0:02:14.1]} 17. bxa4 {[%clk 0:02:33.7]} 17... Bxd4 {[%clk
0:02:13.8]} 18. Qxd4 {[%clk 0:02:33.6]} 18... Rac8 {[%clk 0:02:14.1]} 19. Rfd1
{[%clk 0:02:23.7]} 19... h6 {[%clk 0:02:06.2]} 20. Qb2 {[%clk 0:02:10.6]} 20...
Rfd8 {[%clk 0:01:59.3]} 21. Bf3 {[%clk 0:01:58]} 21... Rxc1 {[%clk 0:01:50.3]}
22. Rxc1 {[%clk 0:01:57.3]} 22... Ne4 {[%clk 0:01:50.6]} 23. h3 {[%clk
0:01:46.9]} 23... g6 {[%clk 0:01:46.8]} 24. Rb1 {[%clk 0:01:24.2]} 24... Rd7
{[%clk 0:01:42.6]} 25. Rd1 {[%clk 0:01:17.7]} 25... h5 {[%clk 0:01:31.9]} 26.
Qd4 {[%clk 0:01:15.7]} 26... Nf6 {[%clk 0:01:27.3]} 27. g4 {[%clk 0:01:08.9]}
27... hxg4 {[%clk 0:01:23]} 28. hxg4 {[%clk 0:01:09.8]} 28... Rc7 {[%clk
0:01:09.1]} 29. Qf4 {[%clk 0:00:51.8]} 29... Rc4 {[%clk 0:00:48.7]} 30. Rd4
{[%clk 0:00:51.8]} 30... Rc1+ {[%clk 0:00:44.8]} 31. Kg2 {[%clk 0:00:51.7]}
31... Kg7 {[%clk 0:00:45.3]} 32. Bxd5 {[%clk 0:00:45.9]} 32... Nxd5 {[%clk
0:00:41.8]} 33. Rxd5 {[%clk 0:00:46.8]} 33... Qh4 {[%clk 0:00:41.9]} 34. Qd4+
{[%clk 0:00:24.2]} 34... Kh7 {[%clk 0:00:41]} 35. Kf3 {[%clk 0:00:21.3]} 35...
Qh1+ {[%clk 0:00:26.9]} 36. Kf4 {[%clk 0:00:21.7]} 36... Qh2+ {[%clk 0:00:27]}
37. Kf3 {[%clk 0:00:17.6]} 37... Rc2 {[%clk 0:00:24.3]} 38. e4 {[%clk
0:00:14.7]} 38... Qh3+ {[%clk 0:00:17]} 39. Kf4 {[%clk 0:00:15.1]} 39... Qh2+
{[%clk 0:00:17.5]} 40. Kf3 {[%clk 0:00:15.1]} 40... Rc3+ {[%clk 0:00:18.1]} 41.
Ke2 {[%clk 0:00:15.5]} 41... Qh3 {[%clk 0:00:18.4]} 42. Rd8 {[%clk 0:00:10.5]}
42... Qf3+ {[%clk 0:00:15.3]} 43. Kd2 {[%clk 0:00:10.6]} 1-0

[Event "*** SCC Grand Prix: Titled Tuesday Blitz"]
[Site "Chess.com"]
[Date "2020.08.04"]
[Round "4"]
[White "vesalhamedinia"]
[Black "Sekar24"]
[Result "0-1"]
[WhiteElo "2281"]
[BlackElo "2460"]
[TimeControl "180+1"]
[EndTime "14:23:22 PDT"]
[Termination "Sekar24 won by checkmate"]

1. d4 {[%clk 0:03:00]} 1... Nf6 {[%clk 0:03:00.1]} 2. c4 {[%clk 0:02:56.9]} 2...
e6 {[%clk 0:03:00.5]} 3. Nf3 {[%clk 0:02:55.7]} 3... d5 {[%clk 0:03:00.5]} 4.
Nc3 {[%clk 0:02:54.6]} 4... Bb4 {[%clk 0:03:01]} 5. Qa4+ {[%clk 0:02:53.5]} 5...
Nc6 {[%clk 0:03:00.1]} 6. e3 {[%clk 0:02:54.2]} 6... O-O {[%clk 0:03:00.2]} 7.
Be2 {[%clk 0:02:53.8]} 7... Ne4 {[%clk 0:02:49.5]} 8. Qc2 {[%clk 0:02:49.2]}
8... f5 {[%clk 0:02:22.2]} 9. O-O {[%clk 0:02:42.4]} 9... Bd6 {[%clk 0:02:20.6]}
10. h3 {[%clk 0:02:32.3]} 10... Nxc3 {[%clk 0:02:08]} 11. bxc3 {[%clk
0:02:28.9]} 11... Kh8 {[%clk 0:02:06.2]} 12. a4 {[%clk 0:02:19.2]} 12... b6
{[%clk 0:02:05.9]} 13. cxd5 {[%clk 0:02:17.9]} 13... exd5 {[%clk 0:02:06.8]} 14.
c4 {[%clk 0:02:17.5]} 14... Nb4 {[%clk 0:02:00.6]} 15. Qc3 {[%clk 0:02:17.3]}
15... dxc4 {[%clk 0:01:57.7]} 16. Bxc4 {[%clk 0:02:18.2]} 16... Bb7 {[%clk
0:01:57.6]} 17. Ne5 {[%clk 0:02:16.3]} 17... Bxe5 {[%clk 0:01:27.6]} 18. dxe5
{[%clk 0:02:11]} 18... Qg5 {[%clk 0:01:26.4]} 19. e4 {[%clk 0:02:05.4]} 19...
Qe7 {[%clk 0:01:20]} 20. exf5 {[%clk 0:02:00.3]} 20... Rxf5 {[%clk 0:01:18.2]}
21. e6 {[%clk 0:01:46.2]} 21... Nd5 {[%clk 0:01:04.3]} 22. Qg3 {[%clk
0:01:19.1]} 22... Raf8 {[%clk 0:00:51.7]} 23. Ba3 {[%clk 0:01:01.7]} 23... c5
{[%clk 0:00:50.8]} 24. Bc1 {[%clk 0:00:37]} 24... Qxe6 {[%clk 0:00:43]} 25. Bb2
{[%clk 0:00:35.1]} 25... Qh6 {[%clk 0:00:36.4]} 26. Rae1 {[%clk 0:00:20.2]}
26... Rg5 {[%clk 0:00:34.1]} 27. Qh2 {[%clk 0:00:11.8]} 27... Nf4 {[%clk
0:00:27]} 28. f3 {[%clk 0:00:08.1]} 28... Rxg2+ {[%clk 0:00:18.7]} 29. Qxg2
{[%clk 0:00:08]} 29... Nxg2 {[%clk 0:00:19.6]} 30. Kxg2 {[%clk 0:00:08.9]} 30...
Qg6+ {[%clk 0:00:19.4]} 31. Kh2 {[%clk 0:00:08.7]} 31... Qc2+ {[%clk 0:00:19]}
32. Re2 {[%clk 0:00:08.7]} 32... Qxc4 {[%clk 0:00:18.9]} 33. Rfe1 {[%clk
0:00:08.4]} 33... Qf4+ {[%clk 0:00:18]} 34. Kg1 {[%clk 0:00:07.8]} 34... Qxf3
{[%clk 0:00:17.8]} 35. Be5 {[%clk 0:00:03.7]} 35... Qh1# {[%clk 0:00:16.7]} 0-1

[Event "*** SCC Grand Prix: Titled Tuesday Blitz"]
[Site "Chess.com"]
[Date "2020.08.04"]
[Round "4"]
[White "Alexander_Moskalenko"]
[Black "MPGM"]
[Result "1-0"]
[WhiteElo "2803"]
[BlackElo "2540"]
[TimeControl "180+1"]
[EndTime "14:23:23 PDT"]
[Termination "Alexander_Moskalenko won on time"]

1. c4 {[%clk 0:03:00.9]} 1... e6 {[%clk 0:02:58.9]} 2. Nf3 {[%clk 0:02:56.4]}
2... d5 {[%clk 0:02:58.4]} 3. g3 {[%clk 0:02:56.5]} 3... dxc4 {[%clk 0:02:55.3]}
4. Bg2 {[%clk 0:02:53.2]} 4... a6 {[%clk 0:02:55.1]} 5. Na3 {[%clk 0:02:50.8]}
5... Bxa3 {[%clk 0:02:53.8]} 6. bxa3 {[%clk 0:02:49.7]} 6... Nf6 {[%clk
0:02:52.5]} 7. Qc2 {[%clk 0:02:42.3]} 7... O-O {[%clk 0:02:41]} 8. Qxc4 {[%clk
0:02:41.8]} 8... Nc6 {[%clk 0:02:39.2]} 9. Bb2 {[%clk 0:02:40.6]} 9... Re8
{[%clk 0:02:26.8]} 10. O-O {[%clk 0:02:38.1]} 10... e5 {[%clk 0:02:26.1]} 11. d3
{[%clk 0:02:38.3]} 11... Be6 {[%clk 0:02:23.5]} 12. Qh4 {[%clk 0:02:30.3]} 12...
Bg4 {[%clk 0:02:13.5]} 13. h3 {[%clk 0:02:17.6]} 13... Bh5 {[%clk 0:01:47.8]}
14. Rac1 {[%clk 0:02:15.9]} 14... Qd6 {[%clk 0:01:36]} 15. Qc4 {[%clk
0:02:06.2]} 15... Rab8 {[%clk 0:01:17.2]} 16. Rfd1 {[%clk 0:02:05.1]} 16... Re7
{[%clk 0:01:08.2]} 17. g4 {[%clk 0:01:59.1]} 17... Bg6 {[%clk 0:01:06.1]} 18. d4
{[%clk 0:01:59.7]} 18... e4 {[%clk 0:01:00.1]} 19. Ne5 {[%clk 0:01:59.7]} 19...
Nd8 {[%clk 0:00:48.1]} 20. Qb3 {[%clk 0:01:04.2]} 20... c6 {[%clk 0:00:43.6]}
21. a4 {[%clk 0:01:03.4]} 21... Qd5 {[%clk 0:00:39.7]} 22. Qa3 {[%clk
0:00:50.3]} 22... Re8 {[%clk 0:00:30.4]} 23. e3 {[%clk 0:00:47]} 23... Ne6
{[%clk 0:00:27.1]} 24. Bf1 {[%clk 0:00:42.8]} 24... Qd8 {[%clk 0:00:23.7]} 25.
Bg2 {[%clk 0:00:11.1]} 25... Nd5 {[%clk 0:00:21.2]} 26. Bc3 {[%clk 0:00:11.4]}
26... Ng5 {[%clk 0:00:16.1]} 27. Be1 {[%clk 0:00:10.1]} 27... f6 {[%clk
0:00:13.5]} 28. Nxg6 {[%clk 0:00:10]} 28... hxg6 {[%clk 0:00:14.3]} 29. Rc5
{[%clk 0:00:10.7]} 29... f5 {[%clk 0:00:11.9]} 30. Qb3 {[%clk 0:00:07.3]} 30...
Qd7 {[%clk 0:00:10.5]} 31. Rdc1 {[%clk 0:00:06.9]} 31... fxg4 {[%clk 0:00:08]}
32. hxg4 {[%clk 0:00:05.9]} 32... Nf3+ {[%clk 0:00:08.1]} 33. Kf1 {[%clk
0:00:04.1]} 33... Qxg4 {[%clk 0:00:07.2]} 34. Rxd5 {[%clk 0:00:04.1]} 34... cxd5
{[%clk 0:00:07.1]} 35. Qxd5+ {[%clk 0:00:04.3]} 35... Kh7 {[%clk 0:00:07.5]} 36.
Rc5 {[%clk 0:00:03.3]} 36... b6 {[%clk 0:00:04.8]} 37. Rc6 {[%clk 0:00:03.1]}
37... Rbd8 {[%clk 0:00:04.5]} 38. Qc4 {[%clk 0:00:02.9]} 38... Nh2+ {[%clk
0:00:03.4]} 39. Kg1 {[%clk 0:00:03.5]} 39... Nf3+ {[%clk 0:00:03.1]} 40. Kf1
{[%clk 0:00:04.1]} 40... Rf8 {[%clk 0:00:02.1]} 41. Bb4 {[%clk 0:00:02.3]} 1-0

[Event "*** SCC Grand Prix: Titled Tuesday Blitz"]
[Site "Chess.com"]
[Date "2020.08.04"]
[Round "4"]
[White "Rodalquilar"]
[Black "spicycaterpillar"]
[Result "0-1"]
[WhiteElo "2647"]
[BlackElo "2993"]
[TimeControl "180+1"]
[EndTime "14:23:25 PDT"]
[Termination "spicycaterpillar won on time"]

1. d4 {[%clk 0:03:00.9]} 1... Nf6 {[%clk 0:02:56.9]} 2. Bf4 {[%clk 0:03:01.2]}
2... c5 {[%clk 0:02:54.9]} 3. e3 {[%clk 0:03:01.8]} 3... d5 {[%clk 0:02:52.7]}
4. Nf3 {[%clk 0:03:01.6]} 4... Nc6 {[%clk 0:02:49.5]} 5. Nbd2 {[%clk 0:03:01.9]}
5... cxd4 {[%clk 0:02:40.1]} 6. exd4 {[%clk 0:03:02.1]} 6... Bg4 {[%clk
0:02:40.6]} 7. c3 {[%clk 0:03:01.4]} 7... e6 {[%clk 0:02:40.8]} 8. Qb3 {[%clk
0:03:01.3]} 8... Bd6 {[%clk 0:02:40.5]} 9. Bxd6 {[%clk 0:02:15.8]} 9... Qxd6
{[%clk 0:02:40.1]} 10. Bb5 {[%clk 0:02:16.1]} 10... O-O {[%clk 0:02:37.3]} 11.
Bxc6 {[%clk 0:02:13.3]} 11... bxc6 {[%clk 0:02:34.7]} 12. Qb4 {[%clk 0:02:12.9]}
12... Qxb4 {[%clk 0:02:15.2]} 13. cxb4 {[%clk 0:02:13.8]} 13... Bxf3 {[%clk
0:02:15.5]} 14. Nxf3 {[%clk 0:02:13.8]} 14... Rfb8 {[%clk 0:02:16.4]} 15. a3
{[%clk 0:02:10.8]} 15... a5 {[%clk 0:02:16.7]} 16. Kd2 {[%clk 0:01:53.7]} 16...
Ne4+ {[%clk 0:02:02.6]} 17. Ke3 {[%clk 0:01:54.1]} 17... axb4 {[%clk 0:02:02.6]}
18. axb4 {[%clk 0:01:54.4]} 18... Rxa1 {[%clk 0:01:17.4]} 19. Rxa1 {[%clk
0:01:55.3]} 19... f6 {[%clk 0:01:14.6]} 20. Ra4 {[%clk 0:01:49]} 20... Kf7
{[%clk 0:01:09.3]} 21. Nd2 {[%clk 0:01:46.4]} 21... Nd6 {[%clk 0:01:03.7]} 22.
Kd3 {[%clk 0:01:02.3]} 22... e5 {[%clk 0:01:03.6]} 23. f3 {[%clk 0:01:02.1]}
23... Ke6 {[%clk 0:01:02.2]} 24. b3 {[%clk 0:00:31.7]} 24... h5 {[%clk
0:00:55.6]} 25. dxe5 {[%clk 0:00:23.4]} 25... fxe5 {[%clk 0:00:55.5]} 26. Ra6
{[%clk 0:00:23.8]} 26... Kd7 {[%clk 0:00:35.8]} 27. Ra7+ {[%clk 0:00:23.9]}
27... Rb7 {[%clk 0:00:36.4]} 28. Ra4 {[%clk 0:00:09.9]} 28... g5 {[%clk
0:00:33.8]} 29. h3 {[%clk 0:00:03.5]} 29... Ke6 {[%clk 0:00:33.4]} 30. g3 {[%clk
0:00:03.5]} 30... Nf5 {[%clk 0:00:30.1]} 31. g4 {[%clk 0:00:03.8]} 31... Nd6
{[%clk 0:00:26.3]} 32. Ra6 {[%clk 0:00:03.6]} 32... hxg4 {[%clk 0:00:20.1]} 33.
hxg4 {[%clk 0:00:03.4]} 33... Kd7 {[%clk 0:00:20.7]} 34. Ra4 {[%clk 0:00:03.6]}
34... Nb5 {[%clk 0:00:19.3]} 35. Ra6 {[%clk 0:00:02.7]} 35... Kd6 {[%clk
0:00:18]} 36. Ra4 {[%clk 0:00:01.7]} 36... Nd4 {[%clk 0:00:17.8]} 37. Ra6 {[%clk
0:00:02.1]} 37... Rxb4 {[%clk 0:00:17.5]} 38. Kc3 {[%clk 0:00:01.8]} 38... Rb7
{[%clk 0:00:17]} 39. b4 {[%clk 0:00:01.9]} 39... Rf7 {[%clk 0:00:16.8]} 40. Kd3
{[%clk 0:00:01.7]} 40... Nxf3 {[%clk 0:00:16.6]} 41. Nb3 {[%clk 0:00:02.6]}
41... e4+ {[%clk 0:00:13.8]} 42. Ke3 {[%clk 0:00:02.9]} 42... Ne5 {[%clk
0:00:13.7]} 43. Na5 {[%clk 0:00:03.5]} 43... Nxg4+ {[%clk 0:00:11.3]} 44. Kd4
{[%clk 0:00:03.9]} 44... Ne5 {[%clk 0:00:11.6]} 45. Nxc6 {[%clk 0:00:03.7]}
45... Nxc6+ {[%clk 0:00:11.5]} 0-1

[Event "*** SCC Grand Prix: Titled Tuesday Blitz"]
[Site "Chess.com"]
[Date "2020.08.04"]
[Round "4"]
[White "amintabatabaei"]
[Black "Zubrrr"]
[Result "1-0"]
[WhiteElo "2965"]
[BlackElo "2634"]
[TimeControl "180+1"]
[EndTime "14:23:25 PDT"]
[Termination "amintabatabaei won on time"]

1. e4 {[%clk 0:02:49.8]} 1... c5 {[%clk 0:02:59.9]} 2. Nf3 {[%clk 0:02:48.9]}
2... d6 {[%clk 0:03:00.1]} 3. d4 {[%clk 0:02:48.2]} 3... cxd4 {[%clk 0:03:00.8]}
4. Nxd4 {[%clk 0:02:48.2]} 4... Nf6 {[%clk 0:03:01.3]} 5. Nc3 {[%clk 0:02:48.6]}
5... a6 {[%clk 0:03:01.4]} 6. Be3 {[%clk 0:02:48.1]} 6... e6 {[%clk 0:03:01.7]}
7. Be2 {[%clk 0:02:44.9]} 7... Qc7 {[%clk 0:03:00.3]} 8. g4 {[%clk 0:02:44.2]}
8... b5 {[%clk 0:02:59.2]} 9. g5 {[%clk 0:02:43]} 9... Nfd7 {[%clk 0:02:59.5]}
10. a3 {[%clk 0:02:40.7]} 10... Bb7 {[%clk 0:02:59.3]} 11. f4 {[%clk 0:02:40.7]}
11... Nb6 {[%clk 0:02:36.9]} 12. Qd2 {[%clk 0:02:37.1]} 12... N8d7 {[%clk
0:02:34.9]} 13. O-O-O {[%clk 0:02:34.7]} 13... Nc5 {[%clk 0:02:34.1]} 14. Bxb5+
{[%clk 0:02:10.8]} 14... axb5 {[%clk 0:02:18.2]} 15. Ndxb5 {[%clk 0:02:11.7]}
15... Qc6 {[%clk 0:01:36.8]} 16. Nxd6+ {[%clk 0:02:10.2]} 16... Bxd6 {[%clk
0:01:34.5]} 17. Qxd6 {[%clk 0:02:11.1]} 17... Nca4 {[%clk 0:01:03.5]} 18. Nxa4
{[%clk 0:01:33.9]} 18... Nxa4 {[%clk 0:00:57]} 19. Qxc6+ {[%clk 0:01:15.8]}
19... Bxc6 {[%clk 0:00:57.9]} 20. Bd4 {[%clk 0:01:14.7]} 20... Bxe4 {[%clk
0:00:40.3]} 21. Rhe1 {[%clk 0:01:14.2]} 21... Bf5 {[%clk 0:00:35.3]} 22. Bxg7
{[%clk 0:01:13]} 22... Rg8 {[%clk 0:00:35.2]} 23. Bf6 {[%clk 0:01:12]} 23... Rc8
{[%clk 0:00:16.6]} 24. Re2 {[%clk 0:00:43.4]} 24... Nc5 {[%clk 0:00:16.2]} 25.
Kb1 {[%clk 0:00:43.3]} 25... Ne4 {[%clk 0:00:09.9]} 26. Be5 {[%clk 0:00:43.4]}
26... Bg4 {[%clk 0:00:05.8]} 27. Rxe4 {[%clk 0:00:41.1]} 27... Bxd1 {[%clk
0:00:05.8]} 28. c3 {[%clk 0:00:40.7]} 28... f5 {[%clk 0:00:04.1]} 29. Rd4 {[%clk
0:00:34.9]} 29... Bb3 {[%clk 0:00:03.9]} 30. Rb4 {[%clk 0:00:33.9]} 30... Bd5
{[%clk 0:00:03.2]} 31. b3 {[%clk 0:00:34.2]} 31... Kd7 {[%clk 0:00:02.5]} 32. c4
{[%clk 0:00:34.6]} 32... Be4+ {[%clk 0:00:03]} 33. Kb2 {[%clk 0:00:34.8]} 33...
Kc6 {[%clk 0:00:03.5]} 34. a4 {[%clk 0:00:32]} 34... Rgd8 {[%clk 0:00:03]} 35.
a5 {[%clk 0:00:32.5]} 35... Rd2+ {[%clk 0:00:03]} 36. Ka3 {[%clk 0:00:33]} 36...
Rxh2 {[%clk 0:00:02.4]} 37. Rb6+ {[%clk 0:00:32.7]} 37... Kd7 {[%clk 0:00:02.9]}
38. a6 {[%clk 0:00:31]} 38... Rh3 {[%clk 0:00:03.2]} 39. Rb7+ {[%clk 0:00:16.3]}
39... Ke8 {[%clk 0:00:03.3]} 40. Ka4 {[%clk 0:00:14.3]} 40... Bc6+ {[%clk
0:00:02.1]} 41. Kb4 {[%clk 0:00:14.2]} 41... Bxb7 {[%clk 0:00:01.4]} 42. axb7
{[%clk 0:00:15.1]} 42... Kd7 {[%clk 0:00:01.5]} 43. c5 {[%clk 0:00:10.6]} 1-0